fUSD/lending_fUSD_20241027
["ID","MTS","AMOUNT","RATE_DAILY","PERIOD"]
[340883451,1730010631836,-40.54528099,0.00039575,2]
[340883452,1730010631846,-595.75,0.00039633,2]
[340883453,1730010631856,-150.0,0.00041562,2]
[340883454,1730010631865,-155.61,0.00041609,2]
[340883455,1730010631875,-150.0,0.00041687,7]
[340883456,1730010631884,-274.09514514,0.00041897,2]
[340883457,1730010631895,-321.65485486,0.00041897,2]
[340883458,1730010631905,-47.11558254,0.00042162,63]
[340883459,1730010631916,-268.033,0.00042162,63]
[340883490,1730010637971,-280.28653073,0.00040075,2]
[340883519,1730010639932,-966.71346927,0.00040075,2]
[340883520,1730010639942,-65.76641746,0.00042162,63]
[340883521,1730010639952,-154.51,0.00042202,2]
[340883522,1730010639962,-24068.59300868,0.0004228,2]
[340883523,1730010639971,-980.98,0.00042296,2]
[340883524,1730010639981,-190.87200615,0.000423,30]
[340883525,1730010639990,-867.8,0.00042368,2]
[340883526,1730010640000,-23900.0,0.00042377,2]
[340883527,1730010640009,-250.0,0.00042429,2]
[340883528,1730010640018,-250.0,0.00042473,120]
[340883529,1730010640027,-250.0,0.00042489,2]
[340883530,1730010640037,-564.86,0.00042846,2]
[340883531,1730010640046,-564.86,0.00042857,2]
[340883532,1730010640056,-564.86,0.00042869,2]
[340883533,1730010640065,-564.86,0.0004288,2]
[340883534,1730010640074,-1000.0,0.00042886,2]
[340883535,1730010640083,-564.86,0.00042891,2]
[340883536,1730010640093,-564.86,0.00042902,2]
[340883537,1730010640102,-564.86,0.00042914,2]
[340883539,1730010640111,-564.86,0.00042925,2]
[340883541,1730010640120,-564.86,0.00042936,2]
[340883543,1730010640129,-564.86,0.00042948,2]
[340883545,1730010640138,-564.86,0.00042959,2]
[340883547,1730010640147,-564.86,0.0004297,2]
[340883549,1730010640157,-564.86,0.00042981,2]
[340883551,1730010640167,-564.86,0.00042993,2]
[340883553,1730010640176,-1712.24597699,0.00043,2]
[340883555,1730010640185,-564.86,0.00043004,2]
[340883556,1730010640194,-564.86,0.00043015,2]
[340883558,1730010640203,-564.86,0.00043027,2]
[340883560,1730010640212,-208.26,0.00043035,120]
[340883562,1730010640221,-564.86,0.00043038,2]
[340883564,1730010640231,-564.86,0.00043049,2]
[340883566,1730010640240,-564.86,0.0004306,2]
[340883568,1730010640249,-807.762,0.00043075,2]
[340883570,1730010640258,-1086.62889189,0.00043089,10]
[340883573,1730010640267,-920.12588381,0.00043089,10]
[340883574,1730010640276,-151.0,0.00043655,14]
[340883576,1730010640285,-177.675971,0.00043655,14]
[340883578,1730010640295,-9552.5535,0.00043737,2]
[340883580,1730010640304,-500.0,0.00043835,5]
[340883582,1730010640314,-500.0,0.00043847,5]
[340883594,1730010640425,-5801.501114,0.000439,2]
[340883596,1730010640435,-865.75256765,0.000439,15]
[340883598,1730010640447,-865.75256763,0.00043914,15]
[340883600,1730010640457,-865.75256763,0.00043928,15]
[340883602,1730010640466,-865.75256763,0.00043942,15]
[340883604,1730010640475,-964.0083,0.00043946,2]
[340883606,1730010640484,-865.75256763,0.00043956,15]
[340883608,1730010640494,-168.27409619,0.00043957,13]
[340883610,1730010640503,-865.75256763,0.00043969,15]
[340883612,1730010640513,-865.75256763,0.00043983,15]
[340883614,1730010640522,-865.75256763,0.00043997,15]
[340883615,1730010640531,-2076.11997766,0.00044,4]
[340883618,1730010640546,-2597.23590993,0.00044,4]
[340883620,1730010640557,-113.25430733,0.00044,4]
[340883622,1730010640568,-2177.00561077,0.00044,4]
[340883624,1730010640578,-6089.15550726,0.00044,7]
[340883626,1730010640587,-500.0,0.00044,120]
[340883628,1730010640596,-500.0,0.00044,120]
[340883630,1730010640605,-500.0,0.00044,120]
[340883632,1730010640614,-500.0,0.00044,120]
[340883634,1730010640623,-500.0,0.00044,120]
[340883636,1730010640632,-500.0,0.00044,120]
[340883638,1730010640641,-500.0,0.00044,120]
[340883640,1730010640650,-500.0,0.00044,120]
[340883642,1730010640659,-500.0,0.00044,120]
[340883644,1730010640669,-500.0,0.00044,120]
[340883646,1730010640678,-500.0,0.00044,120]
[340883647,1730010640687,-500.0,0.00044,120]
[340883649,1730010640696,-500.0,0.00044,120]
[340883651,1730010640705,-500.0,0.00044,120]
[340883653,1730010640715,-500.0,0.00044,120]
[340883654,1730010640724,-500.0,0.00044,120]
[340883656,1730010640733,-500.0,0.00044,120]
[340883658,1730010640742,-500.0,0.00044,120]
[340883660,1730010640751,-500.0,0.00044,120]
[340883662,1730010640760,-500.0,0.00044,120]
[340883663,1730010640770,-500.0,0.00044,120]
[340883664,1730010640779,-500.0,0.00044,120]
[340883665,1730010640788,-500.0,0.00044,120]
[340883666,1730010640797,-500.0,0.00044,120]
[340883667,1730010640806,-500.0,0.00044,120]
[340883668,1730010640816,-500.0,0.00044,120]
[340883669,1730010640825,-500.0,0.00044,120]
[340883670,1730010640834,-500.0,0.00044,120]
[340883671,1730010640844,-500.0,0.00044,120]
[340883672,1730010640853,-500.0,0.00044,120]
[340883673,1730010640863,-500.0,0.00044,120]
[340883674,1730010640872,-500.0,0.00044,120]
[340883675,1730010640881,-500.0,0.00044,120]
[340883676,1730010640890,-500.0,0.00044,120]
[340883677,1730010640900,-500.0,0.00044,120]
[340883678,1730010640909,-500.0,0.00044,120]
[340883679,1730010640918,-500.0,0.00044,120]
[340883680,1730010640928,-500.0,0.00044,120]
[340883681,1730010640937,-500.0,0.00044,120]
[340883682,1730010640947,-500.0,0.00044,120]
[340883683,1730010640956,-500.0,0.00044,120]
[340883684,1730010640965,-500.0,0.00044,120]
[340883685,1730010640975,-500.0,0.00044,120]
[340883686,1730010640984,-500.0,0.00044,120]
[340883687,1730010640994,-500.0,0.00044,120]
[340883688,1730010641003,-500.0,0.00044,120]
[340883689,1730010641012,-500.0,0.00044,120]
[340883690,1730010641021,-500.0,0.00044,120]
[340883691,1730010641030,-500.0,0.00044,120]
[340883692,1730010641040,-500.0,0.00044,120]
[340883693,1730010641049,-500.0,0.00044,120]
[340883694,1730010641059,-500.0,0.00044,120]
[340883695,1730010641068,-500.0,0.00044,120]
[340883696,1730010641077,-500.0,0.00044,120]
[340883697,1730010641086,-500.0,0.00044,120]
[340883698,1730010641096,-500.0,0.00044,120]
[340883699,1730010641105,-500.0,0.00044,120]
[340883700,1730010641115,-500.0,0.00044,120]
[340883701,1730010641126,-500.0,0.00044,120]
[340883702,1730010641135,-500.0,0.00044,120]
[340883703,1730010641144,-500.0,0.00044,120]
[340883704,1730010641154,-500.0,0.00044,120]
[340883705,1730010641163,-500.0,0.00044,120]
[340883706,1730010641173,-500.0,0.00044,120]
[340883707,1730010641182,-500.0,0.00044,120]
[340883708,1730010641191,-500.0,0.00044,120]
[340883709,1730010641200,-500.0,0.00044,120]
[340883710,1730010641211,-500.0,0.00044,120]
[340883711,1730010641220,-500.0,0.00044,120]
[340883712,1730010641230,-273.82069178,0.00044,120]
[340883713,1730010641313,-226.17930822,0.00044,120]
[340883714,1730010641322,-78.14882404,0.00044,120]
[340883728,1730010642778,-458.49167661,0.00040075,2]
[340883729,1730010643051,-102.50832339,0.00040075,2]
[340883730,1730010643061,-497.22316732,0.000423,2]
[340883734,1730010646107,-3438.58467691,0.000423,2]
[340883737,1730010895850,199742.05799997,0.00044039,120]
[340883745,1730011831873,-162.05,0.00015342,2]
[340883746,1730011831882,-150.0,0.00015482,2]
[340883747,1730011831891,-168.23,0.00019178,2]
[340883748,1730011831900,-300.0,0.00019725,2]
[340883749,1730011831909,-420.0,0.00021484,2]
[340883750,1730011831918,-587.0,0.00023401,2]
[340883751,1730011831927,-6340.77,0.00025488,2]
[340883752,1730011831936,-675.02,0.00025488,2]
[340883753,1730011831945,-2320.35,0.00025488,2]
[340883754,1730011831954,-539.0,0.00025488,2]
[340883755,1730011831964,-158.76,0.00032703,30]
[340883756,1730011831973,-150.99,0.00034451,2]
[340883757,1730011831982,-152.0,0.00035992,3]
[340883758,1730011831991,-8029.98831281,0.00037452,2]
[340883759,1730011832010,-1215.01168719,0.00037452,2]
[340883760,1730011832020,-152.0,0.00038808,4]
[340883761,1730011832029,-579.84,0.00039791,2]
[340883762,1730011832038,-250.0,0.00040879,2]
[340883763,1730011832050,-500.0,0.00040898,2]
[340883764,1730011832059,-155.06,0.00040929,2]
[340883765,1730011832069,-200.0,0.00041073,2]
[340883766,1730011832078,-154.51,0.00041096,2]
[340883767,1730011832087,-915.69,0.00041168,2]
[340883768,1730011832096,-150.0,0.00041401,4]
[340883769,1730011832104,-13.22418867,0.00041402,2]
[340883770,1730011832115,-986.77581133,0.00041402,2]
[340883771,1730011832125,-150.0,0.00041417,7]
[340883772,1730011832135,-80.34633949,0.00041444,2]
[340883773,1730011832147,-704.43366051,0.00041444,2]
[340883774,1730011832157,-556.55,0.00041517,2]
[340883775,1730011832166,-183.36,0.00041531,120]
[340883777,1730011832175,-431.429,0.00041531,61]
[340883778,1730011832184,-307.3,0.00041539,2]
[340883779,1730011832193,-516.12,0.00041544,120]
[340883780,1730011832203,-23900.0,0.00041566,2]
[340883781,1730011832212,-152.0,0.00041623,5]
[340883782,1730011832221,-250.0,0.00041727,2]
[340883783,1730011832230,-250.0,0.00041758,120]
[340883784,1730011832240,-163.36,0.00041827,2]
[340883785,1730011832249,-8474.75916321,0.00042,120]
[340883786,1730011832261,-9501.95613009,0.00042,120]
[340883787,1730011832272,-2474.52388717,0.00042,120]
[340883858,1730011842986,-12248.76081953,0.00042,120]
[340883859,1730011842995,-579.84,0.00042055,2]
[340883860,1730011843005,-172.6,0.00042056,120]
[340883861,1730011843014,-158.96487338,0.000423,2]
[340883862,1730011843023,-200.0,0.000429,15]
[340883863,1730011843032,-3603.64215577,0.000429,2]
[340883864,1730011843041,-150.4912383,0.00042957,2]
[340883865,1730011843050,-150.0,0.0004297,2]
[340883866,1730011843061,-150.0,0.0004297,2]
[340883867,1730011843070,-500.0,0.00043,15]
[340883868,1730011843079,-700.0,0.000431,15]
[340883869,1730011843089,-154.51,0.00043151,2]
[340883870,1730011843101,-1000.0,0.000432,15]
[340883871,1730011843111,-1200.0,0.000433,15]
[340883872,1730011843120,-200.0,0.000434,15]
[340883873,1730011843129,-200.0,0.000435,15]
[340883874,1730011843139,-784.78,0.00043516,2]
[340883875,1730011843149,-200.0,0.000436,15]
[340883876,1730011843158,-200.0,0.000437,15]
[340883877,1730011843167,-751.0,0.000438,15]
[340883878,1730011843177,-1058.0,0.000439,7]
[340883879,1730011843186,-927.19433334,0.00043938,15]
[340883880,1730011843195,-199.96479594,0.00043938,28]
[340883881,1730011843205,-500.0,0.00043938,2]
[340883882,1730011843214,-927.1943333,0.00043938,15]
[340883883,1730011843224,-927.1943333,0.00043938,15]
[340883884,1730011843233,-927.1943333,0.00043938,15]
[340883885,1730011843242,-927.1943333,0.00043938,15]
[340883886,1730011843251,-927.1943333,0.00043939,15]
[340883887,1730011843260,-927.1943333,0.00043939,15]
[340883888,1730011843269,-251.27686791,0.00043939,15]
[340883890,1730011846128,-483.38724149,0.00043939,15]
[340883891,1730011846139,-192.5302239,0.00043939,15]
[340883892,1730011846149,-850.5864696,0.00043939,15]
[340883904,1730012430232,250.0,0.00015,2]
[340883905,1730012667124,-157.26,0.00015342,2]
[340883906,1730012667146,-209.32971274,0.000169,2]
[340883907,1730012669809,-157.26,0.000169,2]
[340883908,1730012676923,-366.58971274,0.00016928,2]
[340883913,1730013032064,-300.0,0.00017,2]
[340883914,1730013032074,-150.0,0.00017155,2]
[340883915,1730013032083,-366.58971274,0.000187,2]
[340883916,1730013032092,-348.0,0.000188,2]
[340883917,1730013032102,-350.0,0.00019,2]
[340883918,1730013032113,-3794.69888872,0.00033579,2]
[340883919,1730013032124,-158.76,0.00033679,30]
[340883920,1730013032134,-2454.273153,0.00039196,2]
[340883921,1730013032143,-1107.74,0.00039394,2]
[340883922,1730013032155,-3794.69888871,0.00039492,2]
[340883923,1730013032165,-2833.89799101,0.00039592,2]
[340883924,1730013032177,-676.75,0.00039592,2]
[340883925,1730013032199,-5845.82200899,0.00039592,2]
[340883926,1730013032210,-300.0,0.00039691,4]
[340883927,1730013032222,-3097.92,0.00039691,2]
[340883928,1730013032231,-2700.19,0.00039692,2]
[340883929,1730013032242,-683.6,0.00039692,2]
[340883930,1730013032251,-566.25,0.00039966,2]
[340883931,1730013032260,-324.53,0.00040903,2]
[340883932,1730013032272,-153.7,0.00041495,2]
[340883933,1730013032281,-465.7,0.00041605,2]
[340883934,1730013032291,-154.51,0.00041641,2]
[340883935,1730013032303,-250.0,0.00041801,2]
[340883936,1730013032313,-402.44,0.00041804,2]
[340883937,1730013032323,-177.21,0.00041817,2]
[340883938,1730013032334,-7729.57307334,0.00041908,2]
[340883939,1730013032357,-500.0,0.00041908,2]
[340884029,1730013038285,-250.0,0.00041665,2]
[340884030,1730013038295,-150.0,0.00041665,2]
[340884031,1730013038305,-15670.42692666,0.00041908,2]
[340884032,1730013038317,-150.0,0.00041939,7]
[340884033,1730013038328,-172.6,0.00041965,120]
[340884034,1730013038339,-500.0,0.00041993,2]
[340884035,1730013038349,-250.0,0.00041994,120]
[340884036,1730013038358,-458.95,0.00041995,2]
[340884037,1730013038368,-545.44,0.00042002,2]
[340884038,1730013038377,-158.96,0.00042022,2]
[340884039,1730013038386,-177.21,0.00042026,2]
[340884040,1730013038395,-366.98,0.00042086,2]
[340884041,1730013038405,-200.0,0.00042086,2]
[340884042,1730013038414,-2352.09,0.0004213,2]
[340884043,1730013038424,-566.25,0.0004223,2]
[340884044,1730013038433,-801.88,0.0004232,2]
[340884045,1730013038442,-1000.0,0.00042367,2]
[340884046,1730013038451,-1000.0,0.000425,7]
[340884047,1730013038460,-446.501,0.00042714,65]
[340884048,1730013038470,-186.0,0.0004277,120]
[340884049,1730013038479,-2515.20395274,0.000435,2]
[340884050,1730013038489,-418.1715,0.00043918,20]
[340884051,1730013038502,-10352.7093,0.00043928,2]
[340884052,1730013038511,-1966.6263,0.00043928,2]
[340884053,1730013038519,-6378.14453034,0.00043928,2]
[340884054,1730013038531,-266.79186966,0.00043928,2]
[340884055,1730013038540,-160.69194442,0.00043928,2]
[340884059,1730013040111,-391.7516094,0.00043603,2]
[340884060,1730013040121,-1000.0,0.000437,7]
[340884061,1730013040130,-727.4483906,0.00043928,2]
[340884066,1730013043174,-22050.82216498,0.00043928,2]
[340884067,1730013043184,-1571.72564807,0.00043929,15]
[340884068,1730013043195,-1571.72564807,0.0004393,15]
[340884069,1730013043205,-1571.72564807,0.00043932,15]
[340884070,1730013043216,-1571.72564807,0.00043933,15]
[340884071,1730013043225,-1571.72564807,0.00043934,15]
[340884072,1730013043236,-1571.72564807,0.00043936,15]
[340884073,1730013043245,-1571.72564807,0.00043937,15]
[340884074,1730013043255,-215.7408609,0.00043938,16]
[340884075,1730013043264,-10204.0447,0.00043938,2]
[340884076,1730013043274,-1000.0,0.00043938,2]
[340884077,1730013043284,-1571.72564807,0.00043938,15]
[340884078,1730013043405,-158.67635362,0.00043939,18]
[340884079,1730013043415,-1571.72564807,0.0004394,15]
[340884080,1730013043425,-215.21368682,0.0004394,20]
[340884081,1730013043435,-1571.72564807,0.00043941,15]
[340884082,1730013043444,-365.80333228,0.00043941,18]
[340884083,1730013043454,-150.01,0.00043945,2]
[340884085,1730013043463,-1276.95627638,0.00043945,2]
[340884087,1730013043472,-215.21368681,0.00043973,20]
[340884088,1730013043482,-1741.9363777,0.00043993,2]
[340884089,1730013043491,-4246.1769527,0.00043998,2]
[340884090,1730013043501,-2289.98138599,0.00044,4]
[340884091,1730013043510,-1679.1696074,0.00044,2]
[340884092,1730013043521,-1616.4028371,0.00044,2]
[340884093,1730013043530,-215.21368681,0.00044005,20]
[340884094,1730013043540,-381.85519502,0.00044005,2]
[340884095,1730013043549,-1553.6360668,0.00044009,2]
[340884096,1730013043558,-1490.8692965,0.0004401,2]
[340884097,1730013043568,-1428.1025262,0.0004401,2]
[340884098,1730013043578,-4093.1754902,0.00044011,2]
[340884099,1730013043587,-3940.1740277,0.00044011,2]
[340884100,1730013043596,-3787.1725651,0.00044011,2]
[340884101,1730013043606,-3634.1711026,0.00044011,2]
[340884102,1730013043615,-3481.16964,0.00044011,2]
[340884103,1730013043624,-174.69,0.00044018,2]
[340884104,1730013043633,-174.69,0.0004402,2]
[340884105,1730013043643,-174.69,0.0004402,2]
[340884106,1730013043652,-8087.89889632,0.00044023,10]
[340884107,1730013043661,-174.69,0.00044024,2]
[340884108,1730013043671,-8087.89889632,0.00044027,10]
[340884109,1730013043681,-500.0,0.00044028,120]
[340884110,1730013043690,-500.0,0.00044028,120]
[340884111,1730013043700,-500.0,0.00044028,120]
[340884112,1730013043709,-500.0,0.00044028,120]
[340884113,1730013043719,-500.0,0.00044028,120]
[340884114,1730013043728,-500.0,0.00044028,120]
[340884115,1730013043738,-500.0,0.00044028,120]
[340884116,1730013043748,-500.0,0.00044028,120]
[340884117,1730013043757,-500.0,0.00044028,120]
[340884118,1730013043766,-500.0,0.00044028,120]
[340884119,1730013043776,-500.0,0.00044028,120]
[340884120,1730013043786,-500.0,0.00044028,120]
[340884121,1730013043796,-500.0,0.00044028,120]
[340884122,1730013043806,-500.0,0.00044028,120]
[340884123,1730013043815,-500.0,0.00044028,120]
[340884124,1730013043826,-500.0,0.00044028,120]
[340884125,1730013043835,-500.0,0.00044028,120]
[340884126,1730013043845,-500.0,0.00044028,120]
[340884127,1730013043854,-500.0,0.00044028,120]
[340884128,1730013043864,-500.0,0.00044028,120]
[340884129,1730013043873,-500.0,0.00044028,120]
[340884130,1730013043882,-500.0,0.00044028,120]
[340884131,1730013043891,-500.0,0.00044028,120]
[340884132,1730013043900,-500.0,0.00044028,120]
[340884133,1730013043909,-500.0,0.00044028,120]
[340884134,1730013043919,-500.0,0.00044028,120]
[340884135,1730013043928,-500.0,0.00044028,120]
[340884136,1730013043937,-500.0,0.00044028,120]
[340884137,1730013043946,-500.0,0.00044028,120]
[340884138,1730013043955,-6570.07,0.00044028,5]
[340884139,1730013043965,-500.0,0.00044028,5]
[340884140,1730013043975,-2745.27,0.00044028,5]
[340884141,1730013043986,-1507.17,0.00044028,5]
[340884142,1730013043995,-500.0,0.00044028,120]
[340884143,1730013044004,-500.0,0.00044028,120]
[340884144,1730013044013,-500.0,0.00044028,120]
[340884145,1730013044022,-500.0,0.00044028,120]
[340884146,1730013044031,-500.0,0.00044028,120]
[340884147,1730013044040,-500.0,0.00044028,120]
[340884148,1730013044049,-500.0,0.00044028,120]
[340884149,1730013044058,-500.0,0.00044028,120]
[340884150,1730013044068,-500.0,0.00044028,120]
[340884151,1730013044077,-500.0,0.00044028,120]
[340884152,1730013044086,-500.0,0.00044028,120]
[340884153,1730013044094,-500.0,0.00044028,120]
[340884154,1730013044103,-500.0,0.00044028,120]
[340884155,1730013044112,-500.0,0.00044028,120]
[340884156,1730013044121,-500.0,0.00044028,120]
[340884157,1730013044130,-500.0,0.00044028,120]
[340884158,1730013044139,-500.0,0.00044028,120]
[340884159,1730013044147,-500.0,0.00044028,120]
[340884160,1730013044157,-500.0,0.00044028,120]
[340884161,1730013044166,-500.0,0.00044028,120]
[340884162,1730013044174,-500.0,0.00044028,120]
[340884163,1730013044183,-500.0,0.00044028,120]
[340884164,1730013044192,-500.0,0.00044028,120]
[340884165,1730013044201,-500.0,0.00044028,120]
[340884166,1730013044210,-500.0,0.00044028,120]
[340884167,1730013044219,-500.0,0.00044028,120]
[340884168,1730013044228,-500.0,0.00044028,120]
[340884169,1730013044237,-500.0,0.00044028,120]
[340884170,1730013044247,-500.0,0.00044028,120]
[340884171,1730013044256,-500.0,0.00044028,120]
[340884172,1730013044265,-500.0,0.00044028,120]
[340884173,1730013044275,-500.0,0.00044028,120]
[340884174,1730013044284,-500.0,0.00044028,120]
[340884175,1730013044293,-500.0,0.00044028,120]
[340884176,1730013044302,-500.0,0.00044028,120]
[340884177,1730013044311,-500.0,0.00044028,120]
[340884178,1730013044321,-40439.4944816,0.00044028,10]
[340884179,1730013044330,-174.69,0.00044029,2]
[340884180,1730013044339,-183.98619083,0.00044029,5]
[340884181,1730013044349,-270.48674412,0.00044029,120]
[340884182,1730013044358,-20103.3402484,0.0004403,2]
[340884183,1730013044368,-137494.281237,0.0004403,10]
[340884184,1730013044377,-4897.48213744,0.0004403,10]
[340884185,1730013044386,-250.793322,0.0004403,14]
[340884186,1730013044396,-154.62,0.0004403,2]
[340884187,1730013044405,-151.0,0.0004403,14]
[340884188,1730013044415,-151.0,0.0004403,14]
[340884189,1730013044425,-8087.89889632,0.00044031,10]
[340884190,1730013044434,-1224.37053436,0.00044031,10]
[340884191,1730013044445,-711.17,0.00044033,5]
[340884192,1730013044457,-500.0,0.00044033,5]
[340884193,1730013044470,-151.0,0.00044034,14]
[340884194,1730013044482,-151.0,0.00044034,14]
[340884195,1730013044494,-151.0,0.00044034,14]
[340884196,1730013044507,-151.0,0.00044034,14]
[340884197,1730013044517,-151.0,0.00044034,14]
[340884198,1730013044528,-151.0,0.00044034,14]
[340884199,1730013044539,-293.379675,0.00044034,14]
[340884200,1730013044552,-293.379675,0.00044034,14]
[340884201,1730013044565,-151.0,0.00044034,14]
[340884202,1730013044577,-151.0,0.00044034,7]
[340884203,1730013044589,-161.316214,0.00044034,14]
[340884204,1730013044601,-151.0,0.00044034,14]
[340884205,1730013044613,-630.882651,0.00044034,14]
[340884206,1730013044625,-151.0,0.00044034,14]
[340884207,1730013044636,-151.0,0.00044034,14]
[340884208,1730013044648,-630.882651,0.00044034,14]
[340884209,1730013044659,-151.0,0.00044034,14]
[340884210,1730013044672,-151.0,0.00044034,14]
[340884211,1730013044684,-151.0,0.00044034,14]
[340884212,1730013044696,-151.0,0.00044034,14]
[340884213,1730013044708,-151.0,0.00044034,14]
[340884214,1730013044721,-151.0,0.00044034,14]
[340884215,1730013044733,-500.0,0.00044037,5]
[340884216,1730013044746,-500.0,0.00044037,5]
[340884217,1730013044757,-500.0,0.00044037,5]
[340884218,1730013044768,-500.0,0.00044037,5]
[340884219,1730013044780,-500.0,0.00044037,5]
[340884220,1730013044792,-500.0,0.00044037,5]
[340884221,1730013044804,-500.0,0.00044037,5]
[340884222,1730013044815,-711.17,0.00044037,5]
[340884223,1730013044826,-500.0,0.00044037,5]
[340884224,1730013044837,-500.0,0.00044037,5]
[340884225,1730013044848,-500.0,0.00044037,5]
[340884226,1730013044857,-151.0,0.00044038,14]
[340884227,1730013044867,-151.0,0.00044038,7]
[340884228,1730013044877,-151.0,0.00044038,7]
[340884229,1730013044889,-151.0,0.00044038,7]
[340884230,1730013044899,-151.0,0.00044038,7]
[340884231,1730013044911,-151.0,0.00044038,7]
[340884232,1730013044922,-151.0,0.00044038,7]
[340884233,1730013044934,-151.0,0.00044038,7]
[340884234,1730013044945,-284.298664,0.00044038,7]
[340884235,1730013044957,-151.0,0.00044038,14]
[340884236,1730013044969,-151.0,0.00044038,14]
[340884237,1730013044984,-151.0,0.00044038,14]
[340884238,1730013044995,-151.0,0.00044038,14]
[340884239,1730013045007,-151.0,0.00044038,14]
[340884240,1730013045019,-152.890364,0.00044038,14]
[340884241,1730013045031,-151.0,0.00044038,14]
[340884242,1730013045043,-151.0,0.00044038,14]
[340884243,1730013045055,-151.0,0.00044038,14]
[340884244,1730013045068,-151.0,0.00044038,14]
[340884245,1730013045079,-151.0,0.00044038,14]
[340884246,1730013045089,-151.0,0.00044038,14]
[340884247,1730013045099,-151.0,0.00044038,14]
[340884248,1730013045111,-500.0,0.00044038,5]
[340884249,1730013045122,-500.0,0.00044038,5]
[340884250,1730013045134,-500.0,0.00044038,5]
[340884251,1730013045146,-500.0,0.00044038,5]
[340884252,1730013045157,-500.0,0.00044038,5]
[340884253,1730013045169,-500.0,0.00044038,5]
[340884254,1730013045180,-500.0,0.00044038,5]
[340884255,1730013045190,-500.0,0.00044038,5]
[340884256,1730013045201,-500.0,0.00044038,5]
[340884257,1730013045214,-169.9989494,0.00044038,5]
[340884258,1730013045226,-154.971044,0.00044038,14]
[340884259,1730013045237,-174.106432,0.00044038,14]
[340884260,1730013045251,-174.106432,0.00044038,14]
[340884261,1730013045264,-174.106432,0.00044038,14]
[340884262,1730013045274,-174.106432,0.00044038,14]
[340884263,1730013045285,-174.106432,0.00044038,14]
[340884264,1730013045296,-174.106432,0.00044038,14]
[340884265,1730013045306,-151.0,0.00044038,14]
[340884266,1730013045317,-151.0,0.00044038,14]
[340884267,1730013045328,-151.0,0.00044038,14]
[340884268,1730013045339,-248.17207,0.00044038,14]
[340884269,1730013045351,-175.09347657,0.00044038,14]
[340884270,1730013045363,-500.0,0.00044038,120]
[340884271,1730013045375,-151.0,0.00044038,14]
[340884272,1730013045386,-151.0,0.00044038,14]
[340884273,1730013045397,-151.0,0.00044038,14]
[340884274,1730013045408,-151.0,0.00044038,14]
[340884275,1730013045418,-283.059793,0.00044038,14]
[340884276,1730013045429,-151.0,0.00044038,14]
[340884277,1730013045440,-151.0,0.00044038,14]
[340884278,1730013045452,-151.0,0.00044038,14]
[340884279,1730013045464,-151.0,0.00044038,14]
[340884280,1730013045475,-151.0,0.00044038,14]
[340884281,1730013045486,-151.0,0.00044038,14]
[340884282,1730013045499,-151.0,0.00044038,14]
[340884283,1730013045512,-151.0,0.00044038,14]
[340884284,1730013045524,-182.482675,0.00044038,14]